bitfinex-derivatives/quotes_ETHF0:USTF0_20250919
["timestamp","ask_amount","ask_price","bid_price","bid_amount"]
[1758302218518,2.39247917,4465.7,4465.6,4.0191]
[1758302218917,2.39247917,4465.7,4465.6,4.42198]
[1758302219219,2.16747917,4465.7,4465.6,4.96498]
[1758302219409,2.39247917,4465.7,4465.6,4.96498]
[1758302220015,2.16747917,4465.7,4465.6,4.5621]
[1758302220210,2.39247917,4465.7,4465.6,4.5621]
[1758302221615,2.39247917,4465.7,4465.6,4.42198]
[1758302221918,2.39247917,4465.7,4465.6,4.5621]
[1758302222317,2.39247917,4465.7,4465.6,4.96498]
[1758302223023,2.16747917,4465.7,4465.6,4.96498]
[1758302223225,2.39247917,4465.7,4465.6,4.96498]
[1758302224215,2.16747917,4465.7,4465.6,4.96498]
[1758302224421,2.00697974,4465.7,4465.6,4.96498]
[1758302226026,2.00697974,4465.7,4465.6,4.5621]
[1758302226527,1.78197974,4465.7,4465.6,4.96498]
[1758302226822,2.00697974,4465.7,4465.6,4.96498]
[1758302227127,1.01387974,4465.7,4465.6,8.96498]
[1758302227722,0.78887974,4465.7,4465.6,8.96498]
[1758302228121,1.01387974,4465.7,4465.6,8.96498]
[1758302230732,0.78887974,4465.7,4465.6,8.96498]
[1758302230925,1.01387974,4465.7,4465.6,8.96498]
[1758302233332,2.04317974,4465.7,4465.6,8.96498]
[1758302233636,1.62007974,4465.7,4465.6,8.96498]
[1758302233835,2.04317974,4465.7,4465.6,8.96498]
[1758302234036,2.04317974,4465.7,4465.6,4.96498]
[1758302234336,1.62007974,4465.7,4465.6,4.96498]
[1758302235038,1.39507974,4465.7,4465.6,4.96498]
[1758302235335,1.01397654,4465.7,4465.6,4.96498]
[1758302235739,1.6783,4465.5,4465.4,0.3831]
[1758302235931,2.43660787,4465.5,4465.4,0.3831]
[1758302236230,1.4241,4465.3,4465.2,4.8829]
[1758302236541,2.40740787,4465.3,4465.2,4.8606]
[1758302236733,2.43807654,4465.3,4465.2,4.8606]
[1758302237732,2.43807654,4465.3,4465.2,5.2437]
[1758302239235,1.39517654,4465.3,4465.2,6.2046]
[1758302239430,1.01397654,4465.3,4465.2,6.2046]
[1758302240938,0.75651179,4465.3,4465.2,10.2046]
[1758302241238,0.98151179,4465.3,4465.2,10.2046]
[1758302242228,0.6062,4466.2,4466.1,0.3831]
[1758302242433,1.4241,4466.2,4466.1,0.801]
[1758302242736,1.6491,4466.2,4466.1,0.801]
[1758302243338,1.6491,4466.2,4466.1,0.601]
[1758302243540,1.2543,4466.2,4466.1,0.944]
[1758302244244,1.0293,4466.2,4466.1,0.944]
[1758302244442,1.2543,4466.2,4466.1,0.944]
[1758302245136,1.2543,4466.2,4466.1,0.601]
[1758302245538,1.6491,4466.2,4466.0,0.40284]
[1758302245739,1.6491,4466.2,4466.1,0.3831]
[1758302246843,1.6491,4466.2,4466.1,0.801]
[1758302248040,1.0293,4466.2,4466.1,1.144]
[1758302248245,1.0,4466.3,4466.2,1.54682]
[1758302248447,1.8104,4466.3,4466.2,1.54682]
[1758302250149,2.2025,4466.3,4466.2,1.54682]
[1758302250351,2.6165,4466.3,4466.2,1.20382]
[1758302253048,2.2025,4466.3,4466.2,1.53572]
[1758302253249,1.8104,4466.3,4466.2,1.53572]
[1758302253753,1.0,4466.3,4466.2,1.53572]
[1758302254049,1.225,4466.3,4466.2,1.53572]
[1758302254245,1.23478748,4466.3,4466.2,1.53572]
[1758302254451,1.23478748,4466.3,4466.2,5.53572]
[1758302254650,0.23478748,4466.3,4466.2,5.75962]
[1758302254847,36.287,4467.4,4467.3,0.40272]
[1758302255044,37.60154556,4467.4,4467.3,4.01852]
[1758302256050,37.99364556,4467.4,4467.3,3.92132]
[1758302256251,37.4895,4467.4,4467.3,3.92132]
[1758302257354,1.2025,4467.4,4467.3,3.92132]
[1758302257655,2.12017906,4467.4,4467.3,3.2078]
[1758302257853,1.6165,4467.4,4467.3,3.2078]
[1758302258054,2.12020504,4467.4,4467.3,3.2078]
[1758302258254,1.6165,4467.4,4467.3,3.2078]
[1758302258953,6.12000543,4467.4,4467.3,3.2078]
[1758302259252,2.12000543,4467.4,4467.3,3.2078]
[1758302259752,0.8061,4466.8,4466.7,3.2078]
[1758302259947,1.6165,4466.8,4466.7,3.2078]
[1758302260451,2.11982861,4466.8,4466.7,3.2078]
[1758302264457,2.11982861,4466.8,4466.5,0.6713]
[1758302264658,1.3915,4466.6,4466.5,0.6713]
[1758302264957,1.89482861,4466.6,4466.5,0.6713]
[1758302265156,1.89482861,4466.6,4466.5,1.6804]
[1758302266960,2.14745237,4466.6,4466.5,1.6804]
[1758302267955,2.14752367,4466.6,4466.5,1.6804]
[1758302271360,2.14752367,4466.6,4466.5,2.1018]
[1758302273664,2.14752367,4466.6,4466.5,2.5046]
[1758302273865,2.14752367,4466.6,4466.5,2.1018]
[1758302274365,2.14752367,4466.6,4466.5,1.6804]
[1758302274656,2.14752367,4466.6,4466.5,1.0608]
[1758302275062,2.14752367,4466.6,4466.5,1.6804]
[1758302275263,2.37252367,4466.6,4466.5,1.6804]
[1758302276866,2.37252367,4466.6,4466.5,2.348]
[1758302277070,2.37252367,4466.6,4466.5,2.7508]
[1758302277462,1.78712367,4466.6,4466.5,2.7508]
[1758302278169,2.37252367,4466.6,4466.5,2.7508]
[1758302278662,1.78712367,4466.6,4466.5,2.7508]
[1758302279063,0.98102367,4466.6,4466.5,6.7508]
[1758302279263,0.75602367,4466.6,4466.5,6.7508]
[1758302279468,0.75602367,4466.6,4466.5,6.97469]
[1758302280767,0.75602367,4466.6,4466.5,6.9758]
[1758302280965,36.281,4467.6,4467.5,1.80511]
[1758302281264,0.225,4467.6,4467.5,1.80511]
[1758302281661,1.6155,4467.6,4467.5,0.40271]
[1758302281868,1.6155,4467.6,4467.5,1.80511]
[1758302281869,1.2034,4467.6,4467.5,1.80511]
[1758302282767,0.4121,4467.1,4466.9,3.2078]
[1758302282962,1.6302,4467.0,4466.9,3.61056]
[1758302283459,1.6302,4467.0,4466.9,5.01296]
[1758302284257,1.6302,4467.0,4466.9,4.42416]
[1758302284663,1.6302,4467.0,4466.9,4.0214]
[1758302285266,1.6302,4467.0,4466.9,4.6102]
[1758302285467,0.225,4467.2,4466.9,4.6102]
[1758302285468,0.225,4467.2,4467.1,1.4024]
[1758302286269,0.225,4467.2,4467.1,1.2524]
[1758302286664,0.8199,4467.2,4467.1,1.2524]
[1758302287265,1.2034,4467.2,4467.1,1.2524]
[1758302287458,1.6155,4467.2,4467.1,0.6636]
[1758302287665,1.0353,4467.0,4466.9,3.2078]
[1758302287870,1.6302,4467.0,4466.9,3.6193]
[1758302289265,1.6302,4467.0,4466.9,4.02206]
[1758302289669,1.6302,4467.0,4466.9,3.6193]
[1758302290170,1.6302,4467.0,4466.9,4.02206]
[1758302291769,1.6302,4467.0,4466.9,3.6193]
[1758302292168,1.6302,4467.0,4466.9,4.02206]
[1758302293072,2.40363714,4467.0,4466.9,3.6193]
[1758302293270,2.40363714,4467.0,4466.9,4.02206]
[1758302294366,2.40364549,4467.0,4466.9,4.02206]
[1758302295169,2.40364549,4467.0,4466.9,4.42416]
[1758302296467,2.40364549,4467.0,4466.9,4.02206]
[1758302296663,2.40364549,4467.0,4466.9,3.6193]
[1758302297165,2.40364549,4467.0,4466.9,3.2078]
[1758302299175,2.40364549,4467.0,4466.7,0.0223]
[1758302299375,0.7956,4466.8,4466.7,0.0223]
[1758302299675,2.38894549,4466.8,4466.4,0.4028]
[1758302299880,1.6302,4466.5,4466.4,1.2164]
[1758302300075,2.62864549,4466.5,4466.4,1.2164]
[1758302301279,2.62864549,4466.5,4466.4,0.8136]
[1758302302077,1.3905,4466.3,4466.2,3.2078]
[1758302302277,2.16394549,4466.3,4466.2,3.2301]
[1758302302479,2.16394549,4466.3,4466.2,3.6416]
[1758302303971,2.16394549,4466.3,4466.2,4.04442]
[1758302304882,1.75184549,4466.3,4466.2,4.89882]
[1758302305082,1.97684549,4466.3,4466.2,4.89882]
[1758302305283,2.38894549,4466.3,4466.2,3.6193]
[1758302305584,2.38894549,4466.3,4466.2,3.2078]
[1758302305783,2.38894549,4466.3,4466.2,4.02212]
[1758302305980,2.38894549,4466.3,4466.2,3.6193]
[1758302306482,2.38894549,4466.3,4466.2,0.4115]
[1758302306685,2.38894549,4466.3,4466.2,1.21642]
[1758302307177,2.38894549,4466.3,4466.2,1.66872]
[1758302308582,2.38894549,4466.3,4466.2,1.21642]
[1758302309083,2.38462554,4466.3,4466.2,1.21642]
[1758302309585,2.15962554,4466.3,4466.2,1.21642]
[1758302309888,0.99412554,4466.3,4466.2,4.86312]
[1758302311183,1.59772554,4466.3,4466.2,4.86312]
[1758302312983,1.98802554,4466.3,4466.2,4.86312]
[1758302313294,1.98802554,4466.3,4466.2,4.42422]
[1758302313493,2.39332554,4466.3,4466.2,4.42422]
[1758302314190,2.39332554,4466.3,4466.2,4.86312]
[1758302315393,2.39332554,4466.3,4466.2,4.42422]
[1758302315686,2.39332554,4466.3,4466.2,4.86312]
[1758302316288,2.39332554,4466.3,4466.2,4.42422]
[1758302316891,2.39332554,4466.3,4466.2,4.86312]
[1758302318089,2.39332554,4466.3,4466.2,4.42422]
[1758302319694,2.39332554,4466.3,4466.2,4.86312]
[1758302319888,1.98802554,4466.3,4466.2,4.86312]
[1758302320190,2.39332554,4466.3,4466.2,4.42422]
[1758302321087,2.39332554,4466.3,4466.2,3.2078]
[1758302321286,2.39332554,4466.3,4466.2,3.61062]
[1758302322096,2.39332554,4466.3,4466.2,3.2078]
[1758302323098,2.39332554,4466.3,4466.2,3.61062]
[1758302323595,2.39332554,4466.3,4466.0,0.42513]
[1758302323789,2.39332554,4466.3,4466.0,0.0223]
[1758302323790,1.3992,4466.1,4466.0,0.0223]
[1758302323997,3.98731918,4466.1,4466.0,0.0223]
[1758302324292,1.6305,4466.0,4465.9,0.6713]
[1758302324490,3.99894804,4466.0,4465.9,0.6713]
[1758302324995,3.99894804,4466.0,4465.2,3.61071]
[1758302325191,1.3992,4465.3,4465.2,3.2078]
[1758302325388,2.39332554,4465.3,4465.2,3.2078]
[1758302326395,2.39332554,4465.3,4465.2,3.6149]
[1758302327098,2.39332554,4465.3,4465.2,4.4623]
[1758302328193,2.39332554,4465.3,4465.2,4.86521]
[1758302328595,2.39332554,4465.3,4465.2,4.42631]
[1758302329999,0.76912554,4465.3,4465.2,4.86521]
[1758302330197,0.99412554,4465.3,4465.2,4.86521]
[1758302332499,0.76912554,4465.3,4465.2,4.86521]
[1758302332798,0.225,4466.6,4466.5,1.1483]
[1758302332993,0.6036,4466.9,4466.8,4.35607]
[1758302333299,0.8296,4466.9,4466.8,4.35607]
[1758302334995,36.287,4467.3,4467.2,1.14823]
[1758302335199,36.513,4467.3,4467.2,1.14823]
[1758302335497,36.8906,4467.3,4467.2,1.14823]
[1758302335701,37.1166,4467.3,4467.2,1.14823]
[1758302335901,0.6036,4467.7,4467.4,0.40271]
[1758302336197,1.2252,4468.0,4467.9,0.97067]
[1758302336398,1.0609,4468.0,4467.9,4.35597]
[1758302336707,0.2313,4468.5,4468.4,1.14812]
[1758302336898,0.4573,4468.5,4468.4,1.14812]
[1758302337098,1.8565,4468.5,4468.4,0.97062]
[1758302339508,1.4512,4468.5,4468.4,4.34182]
[1758302339705,1.0609,4468.5,4468.4,4.34182]
[1758302339906,0.6387,4469.0,4468.9,0.92558]
[1758302340205,0.2313,4469.5,4468.9,3.8942]
[1758302340409,1.2522,4469.5,4469.4,4.13333]
[1758302340599,0.8448,4469.5,4469.4,4.29673]
[1758302340798,0.8395,4469.9,4469.8,0.9255]
[1758302341005,0.8395,4469.9,4469.8,1.0889]
[1758302342005,0.226,4469.9,4469.8,1.0889]
[1758302342318,1.0209,4470.9,4470.8,0.92541]
[1758302342510,1.2469,4470.9,4470.8,4.13321]
[1758302342811,0.8395,4470.9,4470.8,4.29661]
[1758302343209,1.2469,4470.9,4470.8,4.13321]
[1758302344419,0.4494,4471.0,4470.8,4.29661]
[1758302344713,1.0629,4471.0,4470.9,0.6864]
[1758302345012,1.48077861,4471.0,4470.9,0.523]
[1758302345315,1.88597861,4471.0,4470.9,0.523]
[1758302347210,1.6536,4471.0,4470.9,1.1079]
[1758302347613,1.88537846,4471.0,4470.9,1.1079]
[1758302348009,1.88537846,4471.0,4470.9,1.10433259]
[1758302348205,1.6536,4471.0,4470.9,1.10433259]
[1758302348407,1.025,4471.0,4470.9,1.10433259]
[1758302349114,0.226,4471.0,4470.9,1.10433259]
[1758302349716,0.8395,4471.0,4470.9,1.10433259]
[1758302350716,1.2469,4471.0,4470.9,1.10433259]
[1758302351816,1.6495,4471.5,4471.4,1.19955]
[1758302352111,1.88089741,4471.5,4471.4,4.40735]
[1758302352315,1.88089741,4471.5,4471.4,3.2078]
[1758302353212,1.88089741,4471.5,4471.4,3.61015]
[1758302353916,1.88089741,4471.5,4471.4,4.99225]
[1758302354116,1.25229741,4471.5,4471.4,4.99225]
[1758302355515,1.88089741,4471.5,4471.4,4.40735]
[1758302355711,1.88089741,4471.5,4471.4,4.99225]
[1758302355913,1.25229741,4471.5,4471.4,4.99225]
[1758302356113,1.47569741,4471.5,4471.4,4.99225]
[1758302357215,1.88089741,4471.5,4471.4,4.40735]
[1758302357516,2.39234881,4471.5,4471.4,3.2078]
[1758302359417,2.39234881,4471.5,4470.8,2.237]
[1758302359418,1.4261,4470.9,4470.8,2.237]
[1758302359616,2.39494881,4470.9,4470.8,2.237]
[1758302360419,0.8126,4470.6,4470.5,3.2078]
[1758302360618,2.16894881,4470.6,4470.5,3.2078]
[1758302362015,0.2234,4470.0,4469.8,5.8473]
[1758302362220,2.39494881,4469.9,4469.8,6.2527]
[1758302362617,2.39590285,4469.9,4469.8,6.6445]
[1758302363120,2.39590285,4469.9,4469.8,6.242]
[1758302363323,2.39590285,4469.9,4469.8,5.4448]
[1758302364019,3.99522535,4469.9,4469.8,1.94607553]
[1758302364321,3.99522535,4469.9,4469.8,0.73754292]
[1758302364322,2.39590285,4469.9,4469.8,0.73754292]
[1758302365123,2.39590285,4469.9,4469.7,0.0223]
[1758302365418,2.16990285,4469.8,4469.7,0.0223]
[1758302366017,1.6495,4469.5,4469.4,0.7375]
[1758302366216,2.61930285,4469.5,4469.4,0.7375]
[1758302366720,2.61930285,4469.5,4469.2,3.2078]
[1758302366920,1.4261,4469.3,4469.2,3.2078]
[1758302367218,3.76349202,4469.3,4469.2,3.2078]
[1758302367815,3.76349202,4469.3,4469.1,0.40256]
[1758302368021,2.39590285,4469.2,4469.1,0.40256]
[1758302368222,3.98949202,4469.2,4469.1,0.40256]
[1758302368425,3.98949202,4469.2,4469.1,1.77446]
[1758302368924,3.47804062,4469.2,4469.1,1.77446]
[1758302369124,1.88445145,4469.2,4469.1,1.77446]
[1758302369519,1.65845145,4469.2,4469.1,1.55624383]
[1758302369724,1.47925145,4469.2,4469.1,1.55624383]
[1758302369923,1.47925145,4469.2,4469.1,1.26528897]
[1758302370224,1.47925145,4469.2,4469.1,1.66784897]
[1758302371325,1.25325145,4469.2,4469.1,1.66784897]
[1758302371625,3.58531114,4469.2,4469.1,1.66784897]
[1758302372018,3.35931114,4469.2,4469.1,1.66784897]
[1758302372214,1.35654664,4469.2,4469.1,1.66784897]
[1758302372420,0.96904664,4469.2,4469.1,5.66784897]
[1758302372624,0.74304664,4469.2,4469.1,5.89160897]
[1758302372824,0.23235145,4469.2,4469.1,5.66784897]
[1758302373121,0.23235145,4469.2,4469.1,5.89160897]
[1758302373624,0.8089,4469.6,4469.5,2.18846855]
[1758302373824,1.31948267,4469.6,4469.5,5.39626855]
[1758302374829,0.73658267,4469.6,4469.5,5.39626855]
[1758302375021,0.51058267,4469.6,4469.5,9.50796855]
[1758302375226,0.00248267,4469.6,4469.5,9.50796855]
[1758302375427,36.251,4470.3,4470.2,1.68326]
[1758302375626,0.9925,4470.7,4470.6,1.68323]
[1758302375929,1.2185,4470.7,4470.6,1.68323]
[1758302376624,1.2159,4471.0,4470.9,1.187]
[1758302376826,1.4419,4471.0,4470.9,1.187]
[1758302378918,1.8213,4471.0,4470.9,1.187]
[1758302379225,0.4494,4471.0,4470.9,1.187]
[1758302379432,1.4607,4471.0,4470.9,1.6832]
[1758302379633,0.9925,4471.0,4470.9,1.6832]
[1758302379930,1.2347,4471.0,4470.9,1.6832]
[1758302381524,1.6141,4471.0,4470.9,1.187]
[1758302382928,1.6141,4471.0,4470.9,0.7885]
[1758302383129,1.6141,4471.0,4470.9,0.4024]
[1758302385435,1.83559844,4471.0,4470.9,0.4024]
[1758302387234,2.33568534,4471.0,4470.9,0.4024]
[1758302388337,2.33568534,4471.0,4470.9,0.7885]
[1758302390139,2.56168534,4471.0,4470.9,0.7885]
[1758302392441,2.57859868,4471.0,4470.9,0.7885]
[1758302394444,2.57859868,4471.0,4470.9,0.4024]
[1758302396536,2.57859868,4471.0,4470.9,0.7885]
[1758302396738,2.57859868,4471.0,4470.9,0.4024]
[1758302399048,2.5779844,4471.0,4470.9,0.4024]
[1758302400947,2.5779844,4471.0,4470.9,3.6102]
[1758302403238,2.5779844,4471.0,4470.9,3.2078]
[1758302403440,6.8016544,4471.0,4470.7,0.0223]
[1758302403643,0.7767,4470.8,4470.7,0.0223]
[1758302403849,2.2902844,4470.8,4470.7,0.0223]
[1758302404045,2.2902844,4470.8,4470.6,0.5052]
[1758302404241,1.5145844,4470.7,4470.6,0.5052]
[1758302404546,2.0642844,4470.7,4470.6,0.5052]
[1758302404748,2.0642844,4470.7,4470.5,0.40243]
[1758302404941,2.2902844,4470.6,4470.5,0.40243]
[1758302407246,0.9638844,4470.6,4470.5,2.00173]
[1758302408450,0.7378844,4470.6,4470.5,2.00173]
[1758302408655,0.9638844,4470.6,4470.5,2.00173]
[1758302409449,0.4586844,4470.6,4470.5,2.00173]
[1758302411746,0.2326844,4470.6,4470.5,2.00173]
[1758302411947,1.3264,4471.2,4471.1,0.79598]
[1758302412150,1.5524,4471.2,4471.1,0.79598]
[1758302415249,1.5524,4471.2,4471.1,0.40238]
[1758302415447,0.5497,4470.9,4470.8,0.40241]
[1758302415651,1.5515,4470.5,4470.4,3.61024]
[1758302415851,1.7775,4470.5,4470.4,3.61024]
[1758302417651,1.7775,4470.5,4470.4,4.00384]
[1758302417852,1.7775,4470.5,4470.4,3.61024]
[1758302418250,1.7775,4470.5,4470.4,4.00384]
[1758302418447,1.7775,4470.5,4470.4,4.57084]
[1758302419055,1.7775,4470.5,4470.4,3.2078]
[1758302420951,1.7775,4470.5,4470.4,4.5686]
[1758302421457,2.32287568,4470.5,4470.4,4.5686]
[1758302422454,2.32287568,4470.5,4470.4,4.97104]
[1758302423249,2.54797568,4470.5,4470.4,3.2078]
[1758302423453,2.54797568,4470.5,4470.3,0.0223]
[1758302423748,2.09687568,4470.4,4470.3,0.0223]
[1758302424150,2.09687568,4470.4,4470.3,0.40245]
[1758302425358,2.09687568,4470.4,4470.3,0.79605]
[1758302425660,2.09687568,4470.4,4470.3,1.76325]
[1758302426256,0.77047568,4470.4,4470.3,1.76325]
[1758302426461,0.99647568,4470.4,4470.3,1.76325]
[1758302427055,0.77047568,4470.4,4470.3,1.76325]
[1758302427255,0.99647568,4470.4,4470.3,1.76325]
[1758302427661,0.77047568,4470.4,4470.3,1.76325]
[1758302427863,1.95277568,4470.4,4470.3,1.76325]
[1758302428059,2.32287568,4470.4,4470.3,0.3936]
[1758302428260,2.32287568,4470.4,4470.2,0.40245]
[1758302428567,2.12907568,4470.3,4470.2,0.40245]
[1758302428761,2.12907568,4470.3,4470.2,0.76725]
[1758302429157,0.99647568,4470.3,4470.2,1.74675]
[1758302430166,0.77047568,4470.3,4470.2,1.74675]
[1758302430363,0.99647568,4470.3,4470.2,5.74675]
[1758302431372,0.77047568,4470.3,4470.2,5.74675]
[1758302431769,1.74967568,4470.3,4470.2,1.74675]
[1758302432369,1.15477568,4470.3,4470.2,1.74675]
[1758302432565,0.77047568,4470.3,4470.2,1.74675]
[1758302434576,2.12907568,4470.3,4470.2,0.40245]
[1758302434771,2.12907568,4470.3,4470.2,1.34765]
[1758302434981,2.12907568,4470.3,4470.2,1.74675]
[1758302437873,2.12907568,4470.3,4470.2,1.16635]
[1758302438081,2.12907568,4470.3,4470.2,0.40245]
[1758302438480,2.12907568,4470.3,4470.2,1.74675]
[1758302438875,2.12907568,4470.3,4470.2,1.16635]
[1758302439674,2.12907568,4470.3,4470.2,0.40245]
[1758302439875,2.12907568,4470.3,4470.1,0.0223]
[1758302440074,0.4543,4470.5,4470.1,0.0223]
[1758302440075,1.53417568,4470.2,4470.1,0.0223]
[1758302440280,2.12907568,4470.2,4470.1,0.0223]
[1758302440477,1.5869,4470.0,4469.9,5.84769]
[1758302440683,2.58337568,4470.0,4469.9,5.84769]
[1758302441182,2.58337568,4470.0,4469.9,2.2374]
[1758302442182,2.58337568,4470.0,4469.8,0.4025]
[1758302442381,1.3586,4469.8,4469.7,0.3648]
[1758302442584,2.12907568,4469.8,4469.7,0.3648]
[1758302443081,2.12907568,4469.8,4469.7,0.76731]
[1758302443283,2.12907568,4469.8,4469.7,0.3648]
[1758302443677,2.12907568,4469.8,4469.5,0.40252]
[1758302443882,0.7637,4469.4,4469.2,2.2374]
[1758302444084,2.35507568,4469.3,4469.2,2.2374]
[1758302444475,2.35507568,4469.3,4469.2,2.63995]
[1758302444676,2.35507568,4469.3,4469.2,2.2374]
[1758302445283,6.35507568,4469.3,4469.2,2.2374]
[1758302445988,1.5869,4469.0,4468.9,3.2078]
[1758302446282,2.58337568,4469.0,4468.9,3.2078]
[1758302447285,2.58337568,4469.0,4468.5,0.5804]
[1758302447484,1.3586,4468.6,4468.5,1.34782]
[1758302447678,0.11767568,4468.6,4468.5,1.34782]
[1758302447884,0.11767568,4468.6,4468.5,1.98422]
[1758302449187,0.11767568,4468.6,4468.5,1.5816]
[1758302449882,0.11767568,4468.6,4468.5,0.8177]
[1758302450482,0.11767568,4468.6,4468.5,1.1825]
[1758302450786,0.11767568,4468.6,4468.5,1.5816]
[1758302452185,0.11767568,4468.6,4468.5,1.98422]
[1758302459689,0.37554677,4468.6,4468.5,1.98422]
[1758302460082,0.25787109,4468.6,4468.5,1.98422]
[1758302460390,3.2078,4469.2,4469.1,1.13406]
[1758302460587,3.93799616,4469.2,4469.1,1.69216]
[1758302460890,3.4338,4469.2,4469.1,1.69216]
[1758302461389,0.226,4469.2,4469.1,1.69216]
[1758302461785,3.2078,4470.0,4469.5,1.92413]
[1758302461988,36.98035994,4469.6,4469.5,1.92413]
[1758302462185,36.476,4469.6,4469.5,1.92413]
[1758302462791,36.98053088,4469.6,4469.5,1.92413]
[1758302462992,36.75453088,4469.6,4469.5,1.92413]
[1758302463290,36.98053088,4469.6,4469.5,1.92413]
[1758302463684,37.35093088,4469.6,4469.5,1.92413]
[1758302464189,37.72283088,4469.6,4469.5,1.5216]
[1758302464582,37.95533088,4469.6,4469.5,1.5216]
[1758302464787,37.95533088,4469.6,4469.5,1.1535]
[1758302465389,37.95533088,4469.6,4469.3,0.0223]
[1758302465390,42.17907088,4469.6,4469.3,0.0223]
[1758302465691,0.9748,4469.4,4469.3,0.0223]
[1758302465892,1.47933088,4469.4,4469.3,0.0223]
[1758302466191,1.24683088,4469.4,4469.0,2.4703]
[1758302466390,0.9748,4469.2,4469.1,0.5581]
[1758302466593,1.70533088,4469.2,4469.1,0.5581]
[1758302467088,1.47283088,4469.2,4469.1,0.9215]
[1758302467293,0.73053088,4469.2,4469.1,1.2896]
[1758302468895,0.50453088,4469.2,4469.1,1.2896]
[1758302469094,0.226,4469.2,4469.1,1.2896]
[1758302469294,0.73053088,4469.2,4469.1,1.2896]
[1758302472395,0.98597839,4469.2,4469.1,1.2896]
[1758302472595,0.98597839,4469.2,4469.1,1.69216]
[1758302472894,0.48144751,4469.2,4469.1,1.69216]
[1758302475695,0.25544751,4469.2,4469.1,1.69216]
[1758302475996,0.48144751,4469.2,4469.1,1.69216]
[1758302476191,36.25,4469.6,4469.5,1.92413]
[1758302476393,0.3704,4470.6,4470.5,1.92403]
[1758302476598,1.10256306,4470.6,4470.5,1.92403]
[1758302477496,1.48636306,4470.6,4470.5,1.92403]
[1758302478696,1.10256306,4470.6,4470.5,1.92403]
[1758302480292,0.50616306,4470.6,4470.5,1.92403]
[1758302480499,0.73216306,4470.6,4470.5,1.92403]
[1758302482402,0.50616306,4470.6,4470.5,1.92403]
[1758302482602,0.73216306,4470.6,4470.5,1.92403]
[1758302483597,0.226,4470.6,4470.5,1.92403]
[1758302483805,3.2078,4470.7,4470.6,1.69203]
[1758302484101,3.4338,4470.7,4470.6,1.69203]
[1758302484300,3.71323056,4470.7,4470.6,1.69203]
[1758302484502,3.4338,4470.7,4470.6,1.69203]
[1758302484703,0.5964,4470.7,4470.6,1.69203]
[1758302484894,0.3704,4470.7,4470.6,1.69203]
[1758302485100,0.5964,4470.7,4470.6,1.69203]
[1758302485402,0.226,4470.7,4470.6,1.69203]
[1758302486703,36.26,4471.1,4471.0,1.92399]
[1758302486895,36.98211582,4471.1,4471.0,1.92399]
[1758302487202,37.35251098,4471.1,4471.0,1.92399]
[1758302488200,37.596839,4471.1,4471.0,1.92399]
[1758302489203,37.980639,4471.1,4471.0,1.92399]
[1758302492200,37.980639,4471.1,4471.0,1.55589]
[1758302492404,38.452739,4471.1,4471.0,1.32389]
[1758302492602,38.452739,4471.1,4470.7,2.2383]
[1758302492804,0.4721,4470.9,4470.8,1.00561]
[1758302493007,2.193739,4470.9,4470.8,1.00561]
[1758302493511,1.335839,4470.9,4470.8,1.76641]
[1758302493723,1.721639,4470.9,4470.8,1.76641]
[1758302495314,1.495639,4470.9,4470.8,1.76641]
[1758302495609,1.721639,4470.9,4470.8,1.76641]
[1758302502512,0.966439,4470.9,4470.8,1.76641]
[1758302506113,0.740439,4470.9,4470.8,1.76641]
[1758302506315,0.966439,4470.9,4470.8,1.76641]
[1758302506915,0.47032802,4470.9,4470.8,1.76641]
[1758302507119,0.98012472,4470.9,4470.8,1.76641]
[1758302509617,0.75412472,4470.9,4470.8,1.76641]
[1758302509813,0.98012472,4470.9,4470.8,1.76641]
[1758302510213,0.75412472,4470.9,4470.8,5.99007999]
[1758302510917,0.7552,4471.8,4471.7,0.40232]
[1758302511219,0.9812,4471.8,4471.7,1.39242]
[1758302512815,0.9812,4471.8,4471.7,1.76632]
[1758302514211,0.7552,4471.8,4471.7,1.76632]
[1758302514408,0.5954,4471.8,4471.7,1.76632]
[1758302518123,0.9812,4471.8,4471.7,1.76632]
[1758302521120,1.1938,4472.1,4472.0,1.5832]
[1758302521320,1.4188,4472.1,4472.0,1.5832]
[1758302521728,1.4188,4472.1,4472.0,0.5882]
[1758302522224,0.9582,4472.1,4471.9,0.99051]
[1758302522416,1.1938,4472.0,4471.9,0.5882]
[1758302522816,1.43616738,4472.0,4471.9,0.99051]
[1758302523015,1.95175656,4472.0,4471.9,1.38151]
[1758302524224,1.49115656,4472.0,4471.9,1.75751]
[1758302524429,0.98295656,4472.0,4471.9,1.75751]
[1758302525429,1.13305656,4472.0,4471.9,1.75751]
[1758302525729,1.35805656,4472.0,4471.9,1.75751]
[1758302525930,1.13305656,4472.0,4471.9,1.75751]
[1758302526129,1.35805656,4472.0,4471.9,1.75751]
[1758302527335,1.13305656,4472.0,4471.9,1.75751]
[1758302527533,1.35805656,4472.0,4471.9,1.75751]
[1758302527833,0.98295656,4472.0,4471.9,1.75751]
[1758302528733,0.75795656,4472.0,4471.9,1.75751]
[1758302528928,0.98295656,4472.0,4471.9,1.75751]
[1758302531030,0.75795656,4472.0,4471.9,1.75751]
[1758302531226,0.98295656,4472.0,4471.9,1.75751]
[1758302531432,0.74058918,4472.0,4471.9,1.75751]
[1758302531628,0.98026515,4472.0,4471.9,1.75751]
[1758302532134,0.74058918,4472.0,4471.9,1.75751]
[1758302532339,0.51558918,4472.0,4471.9,1.75751]
[1758302532531,0.74058918,4472.0,4471.9,1.75751]
[1758302532931,0.9802994,4472.0,4471.9,1.75751]
[1758302533137,36.6221,4472.6,4472.5,1.98546]
[1758302533434,36.8471,4472.6,4472.5,1.98546]
[1758302533633,36.472,4472.6,4472.5,1.98546]
[1758302534032,36.247,4472.6,4472.5,1.98546]
[1758302534236,3.5829,4473.3,4473.2,1.75739]
[1758302534426,3.8079,4473.3,4473.2,1.75739]
[1758302534635,0.6001,4473.3,4473.2,1.75739]